bitfinex-derivatives/quotes_ETHF0:USTF0_20260316
["timestamp","ask_amount","ask_price","bid_price","bid_amount"]
[1773674629892,52.27361026,2291.8,2290.5,4.00247725]
[1773674630797,40.80561026,2291.8,2290.6,0.21825]
[1773674631098,0.00561026,2291.8,2290.7,4.03489324]
[1773674632594,0.10527279,2291.8,2290.7,4.03489324]
[1773674634297,0.11803483,2292.3,2290.9,4.01921079]
[1773674634698,40.8,2292.2,2290.9,4.01921079]
[1773674635188,40.8053361,2292.2,2290.9,4.01921079]
[1773674635389,40.8053361,2292.2,2291.0,0.21821]
[1773674635594,40.8053361,2292.2,2291.1,4.0178658]
[1773674636396,40.92433269,2292.2,2291.1,4.0178658]
[1773674636796,0.11514267,2292.1,2291.1,4.0178658]
[1773674638295,40.8053361,2292.2,2291.1,4.0178658]
[1773674638998,52.3987895,2292.2,2291.1,4.0178658]
[1773674639898,40.8053361,2292.2,2291.1,4.0178658]
[1773674640606,0.10290586,2292.1,2291.1,4.0178658]
[1773674642101,40.8053361,2292.2,2291.1,4.0178658]
[1773674642305,0.07572989,2292.2,2291.1,4.0178658]
[1773674642801,40.87572989,2292.2,2291.1,4.0178658]
[1773674643495,40.8053361,2292.2,2291.1,4.0178658]
[1773674643700,0.0053361,2292.2,2291.3,4.02513698]
[1773674644605,0.0053361,2292.2,2291.3,4.13541698]
[1773674645218,0.0053361,2292.2,2291.5,4.15040423]
[1773674645416,0.0053361,2292.2,2291.5,4.15517736]
[1773674645918,0.04713366,2292.5,2291.5,4.15517736]
[1773674646111,0.04713366,2292.5,2291.5,4.15186736]
[1773674646416,40.84713366,2292.5,2291.5,4.15186736]
[1773674646717,40.84713366,2292.5,2291.5,4.14867736]
[1773674646916,40.85057257,2292.5,2291.5,4.14867736]
[1773674647416,0.02801669,2293.1,2291.7,4.04191018]
[1773674647621,0.02801669,2293.1,2291.9,4.14971073]
[1773674648122,0.02801669,2293.1,2291.9,4.04019073]
[1773674648519,0.03173446,2293.1,2291.9,4.04019073]
[1773674648712,0.03173446,2293.1,2291.9,4.14931073]
[1773674648916,0.03173446,2293.1,2291.9,4.14974073]
[1773674649423,0.03173446,2293.1,2291.9,4.04019073]
[1773674651528,0.0418005,2293.0,2291.9,4.04019073]
[1773674651721,0.04223989,2293.1,2291.9,4.04019073]
[1773674651923,0.04223989,2293.1,2291.9,4.25831073]
[1773674654428,0.00371777,2293.1,2291.9,4.36794073]
[1773674654928,0.00371777,2293.1,2291.9,4.36754073]
[1773674655627,0.00371777,2293.1,2291.9,4.36778073]
[1773674656023,0.00371777,2293.1,2291.9,11.61178073]
[1773674656226,0.00371777,2293.1,2292.0,4.14036472]
[1773674656625,0.00371777,2293.1,2292.0,4.02410472]
[1773674656826,0.02974367,2293.1,2292.0,4.02410472]
[1773674657228,0.02974367,2293.1,2292.0,4.13424472]
[1773674658026,0.00371777,2293.1,2292.0,4.13424472]
[1773674658329,0.00371777,2293.1,2292.2,4.13462854]
[1773674659832,0.00371777,2293.1,2292.2,4.01870854]
[1773674660030,0.00371777,2293.1,2292.2,4.12838854]
[1773674660428,0.00371777,2293.1,2292.2,4.01870854]
[1773674660624,0.21796,2293.6,2292.2,4.13034854]
[1773674660625,0.00161476,2293.5,2292.2,4.13034854]
[1773674661131,40.8,2293.8,2292.5,0.21806]
[1773674661331,40.80852454,2293.8,2292.6,4.02581988]
[1773674661629,0.00852454,2293.7,2292.6,4.02581988]
[1773674661830,0.00852454,2293.7,2292.6,4.13527988]
[1773674662232,0.00852454,2293.7,2292.6,4.13586988]
[1773674662827,0.00852454,2293.7,2292.6,4.02581988]
[1773674663027,0.01121696,2293.6,2292.6,4.02581988]
[1773674663225,0.0298989,2293.4,2292.0,4.00814324]
[1773674663433,0.21799,2293.3,2292.0,4.00814324]
[1773674663635,0.02664637,2293.0,2292.0,4.00814324]
[1773674663930,0.02664637,2293.2,2292.0,4.00814324]
[1773674664128,0.12927424,2293.5,2292.2,3.9568293]
[1773674664328,0.21796,2293.7,2292.2,3.9568293]
[1773674664531,0.1260654,2293.2,2292.2,3.9568293]
[1773674664732,0.1260654,2293.0,2292.0,3.9568293]
[1773674665030,0.1260654,2292.8,2292.0,3.9568293]
[1773674665233,0.31724754,2292.6,2292.0,3.9568293]
[1773674665730,0.31406823,2292.8,2292.0,3.9568293]
[1773674666035,40.8,2292.7,2292.0,3.9568293]
[1773674666830,0.24218703,2292.9,2292.0,3.9568293]
[1773674667229,40.8,2292.8,2292.0,3.9568293]
[1773674667734,11.66854033,2293.2,2292.0,3.9568293]
[1773674667936,0.23454033,2293.2,2292.0,3.9568293]
[1773674668135,40.8,2293.1,2292.0,3.9568293]
[1773674668331,0.22305412,2293.0,2292.0,3.9568293]
[1773674669233,0.22305412,2293.0,2292.1,3.95129108]
[1773674669433,0.22305412,2293.0,2290.7,14.24583272]
[1773674669434,4.10158638,2292.3,2290.4,3.95129108]
[1773674669639,3.88349638,2292.0,2290.4,3.95129108]
[1773674669834,3.88349638,2292.0,2290.6,3.95129108]
[1773674670029,3.88349638,2292.0,2290.7,0.21824]
[1773674670236,3.88349638,2292.0,2290.8,3.95129108]
[1773674670539,3.8882526,2292.0,2290.8,3.95679847]
[1773674671540,4.58358261,2293.0,2291.2,3.95129108]
[1773674671541,3.88349638,2292.6,2291.2,3.95129108]
[1773674672534,3.88832407,2292.6,2291.2,3.95129108]
[1773674673331,3.88832407,2292.6,2291.4,3.95129108]
[1773674673540,0.00482769,2292.6,2291.4,3.95129108]
[1773674673742,0.00482769,2292.6,2291.4,4.06109108]
[1773674674039,0.00482769,2292.6,2291.4,3.95129108]
[1773674674241,0.00482769,2292.6,2291.4,4.06162108]
[1773674674541,3.88832407,2292.6,2291.4,4.06162108]
[1773674676536,3.88832407,2292.6,2291.4,4.06177108]
[1773674677039,3.88832407,2292.6,2291.4,3.95129108]
[1773674677232,3.88832407,2292.6,2291.4,4.06045108]
[1773674678540,3.88832407,2292.6,2291.4,3.95129108]
[1773674679243,3.88832407,2292.6,2291.4,4.06259108]
[1773674679439,3.88832407,2292.6,2291.4,3.95129108]
[1773674680448,3.88349638,2292.4,2291.4,3.95129108]
[1773674680843,3.88349638,2292.4,2290.9,3.95129108]
[1773674684446,4.367,2292.1,2290.8,3.95679847]
[1773674684647,3.88349638,2292.0,2290.8,3.95679847]
[1773674685048,3.88349638,2291.6,2290.4,3.95129108]
[1773674686047,3.88349638,2291.6,2289.5,3.95129108]
[1773674686048,3.88349638,2291.4,2289.5,3.95129108]
[1773674686251,3.88349638,2291.4,2290.4,0.00371723]
[1773674686443,3.88349638,2291.2,2290.4,0.00371723]
[1773674687048,3.88349638,2291.2,2289.9,3.95129108]
[1773674687546,3.88349638,2291.0,2289.9,3.95129108]
[1773674687946,3.88349638,2291.0,2289.9,3.9563473]
[1773674688452,0.21822,2290.9,2289.9,0.00505622]
[1773674688653,3.88349638,2290.8,2289.7,3.95129108]
[1773674689550,3.88349638,2290.8,2289.7,3.95464476]
[1773674690143,3.88349638,2290.8,2289.2,3.95129108]
[1773674690346,3.88349638,2290.8,2288.7,8.73701]
[1773674690347,3.88349638,2290.8,2289.4,3.95129108]
[1773674690547,0.00549921,2290.9,2289.6,3.95129108]
[1773674690748,0.00549921,2290.9,2289.8,3.95129108]
[1773674691053,40.8,2290.8,2289.8,3.95129108]
[1773674691248,40.8,2290.8,2289.8,3.95484778]
[1773674691550,0.00549921,2290.9,2289.8,3.95484778]
[1773674691754,3.88899559,2290.9,2289.8,3.95484778]
[1773674691953,0.00549921,2290.9,2289.8,3.95484778]
[1773674692758,0.00549921,2290.9,2289.8,4.06404778]
[1773674694044,3.72296806,2290.9,2289.5,3.83814305]
[1773674694549,0.00549921,2290.9,2289.7,4.01395336]
[1773674694847,0.00549921,2290.9,2289.9,3.90139336]
[1773674695052,0.00549921,2290.9,2290.1,4.01827336]
[1773674695252,3.8837686,2290.9,2290.1,3.90139336]
[1773674695643,3.8837686,2290.9,2290.2,11.05839336]
[1773674695853,3.8837686,2290.9,2290.4,4.01371336]
[1773674696454,3.8837686,2290.9,2290.4,4.01620336]
[1773674697153,3.8837686,2290.9,2290.4,3.90139336]
[1773674697348,3.8837686,2290.9,2290.4,11.05639336]
[1773674698752,3.8837686,2290.9,2290.4,3.90139336]
[1773674699057,3.8837686,2290.9,2290.4,11.05539336]
[1773674699355,3.8837686,2290.9,2290.5,3.90139336]
[1773674699556,3.8837686,2290.9,2290.4,11.05539336]
[1773674700654,3.87826939,2291.2,2290.5,3.90139336]
[1773674701450,3.87826939,2291.2,2290.6,7.153]
[1773674701657,3.88222384,2291.2,2290.6,7.153]
[1773674701952,3.87826939,2291.5,2290.7,3.90139336]
[1773674702960,3.88192314,2291.5,2290.7,3.90139336]
[1773674703856,3.87826939,2291.1,2290.2,3.90139336]
[1773674704057,3.87826939,2291.1,2290.2,11.05439336]
[1773674706461,3.87826939,2290.9,2290.2,7.15]
[1773674707664,3.87826939,2290.9,2288.8,8.73688]
[1773674707665,3.87826939,2290.5,2289.1,3.90139336]
[1773674707865,3.87826939,2290.1,2289.1,3.90139336]
[1773674708663,3.87826939,2290.1,2289.1,3.90658241]
[1773674709663,3.87826939,2290.1,2289.2,7.128]
[1773674709864,3.87826939,2290.1,2289.2,11.02939336]
[1773674710063,3.87826939,2290.1,2289.2,3.90139336]
[1773674710269,3.87826939,2289.9,2289.0,3.90139336]
[1773674710462,3.87826939,2289.9,2289.2,3.90139336]
[1773674710657,3.87826939,2289.9,2289.2,11.00439336]
[1773674711266,3.87826939,2290.4,2289.3,3.90139336]
[1773674711467,4.09153007,2290.4,2289.3,3.90139336]
[1773674711962,3.87826939,2290.2,2289.4,7.11]
[1773674712162,3.87826939,2290.2,2289.2,0.00314029]
[1773674712563,3.98757939,2290.2,2289.3,7.113]
[1773674712766,3.98757939,2290.2,2289.3,7.115]
[1773674712969,3.98915939,2290.2,2289.3,3.90139336]
[1773674713167,3.87826939,2290.2,2289.3,3.90139336]
[1773674713560,3.98760939,2290.2,2289.3,3.90139336]
[1773674713768,3.87826939,2290.2,2289.3,3.90139336]
[1773674713969,3.98895939,2290.2,2289.3,3.90139336]
[1773674714460,3.98895939,2290.2,2289.4,7.122]
[1773674715161,3.87826939,2289.6,2288.3,3.90139336]
[1773674715366,3.87826939,2289.6,2288.8,3.90139336]
[1773674715664,0.21829,2290.1,2288.8,3.90139336]
[1773674715665,3.98989939,2290.0,2288.8,3.90139336]
[1773674716269,3.88288713,2290.0,2289.0,3.90139336]
[1773674716469,3.99249713,2290.0,2289.0,3.90139336]
[1773674716670,3.88288713,2290.0,2289.0,3.90139336]
[1773674716869,3.99223713,2290.0,2289.0,3.90139336]
[1773674717069,3.88288713,2290.0,2289.0,3.90139336]
[1773674717364,3.88288713,2290.0,2289.2,3.90139336]
[1773674717671,3.88288713,2290.0,2289.3,11.03339336]
[1773674718074,3.99287713,2290.0,2289.3,11.03439336]
[1773674718772,3.88288713,2290.0,2289.4,3.90139336]
[1773674719770,0.00461774,2290.0,2289.4,3.90139336]
[1773674720372,3.87826939,2290.3,2289.4,3.90139336]
[1773674721269,3.8814535,2290.3,2289.6,3.90139336]
[1773674721461,3.8814535,2290.3,2289.6,11.04239336]
[1773674722168,3.8814535,2290.3,2289.7,3.90139336]
[1773674722969,0.00318411,2290.3,2289.7,3.90139336]
[1773674723476,4.14553312,2290.6,2289.7,3.90139336]
[1773674724573,4.15120712,2290.6,2289.7,3.90139336]
[1773674724970,0.005674,2290.6,2289.7,3.90139336]
[1773674727171,0.005674,2290.6,2289.9,3.80209459]
[1773674728072,4.58721429,2291.4,2289.9,3.80209459]
[1773674728373,4.14553312,2291.5,2290.2,3.80209459]
[1773674728977,4.14553312,2291.7,2290.2,3.80209459]
[1773674729173,4.15046097,2291.7,2290.2,3.80209459]
[1773674729677,4.15046097,2291.7,2290.4,3.80209459]
[1773674729878,4.15046097,2291.7,2290.6,3.80209459]
[1773674730081,4.15046097,2291.7,2290.6,3.80638387]
[1773674731077,4.14553312,2291.4,2289.4,3.80209459]
[1773674731279,4.14553312,2291.3,2289.6,3.80209459]
[1773674731983,4.14553312,2291.2,2289.6,3.80209459]
[1773674732174,4.14553312,2291.2,2289.8,3.80209459]
[1773674734072,4.14553312,2290.2,2289.6,0.00314678]
[1773674734278,4.14553312,2290.2,2289.0,3.80209459]
[1773674734480,4.14553312,2289.9,2288.5,3.80209459]
[1773674734681,4.14553312,2289.5,2288.5,3.80209459]
[1773674735186,4.15033945,2289.5,2288.5,3.80599663]
[1773674736387,4.15033945,2289.5,2288.7,3.80209459]
[1773674736781,0.00480633,2289.5,2288.7,3.80209459]
[1773674738484,4.15033945,2289.5,2288.8,10.89909459]
[1773674738687,4.15033945,2289.5,2288.9,3.80209459]
[1773674739389,4.15033945,2289.5,2288.7,3.80209459]
[1773674740589,4.15033945,2289.5,2288.8,10.91009459]
[1773674740787,4.15033945,2289.5,2288.5,0.00390204]
[1773674740990,4.14553312,2289.3,2288.6,3.80209459]
[1773674742883,4.14553312,2289.3,2288.5,0.00390204]
[1773674744087,4.14553312,2289.3,2288.5,3.80599663]
[1773674744496,4.14553312,2289.3,2288.5,0.00390204]
[1773674744994,0.21947029,2289.5,2288.2,7.107]
[1773674744995,4.14553312,2289.1,2288.2,7.107]
[1773674745297,4.25559312,2289.1,2288.2,10.90909459]
[1773674745496,4.14553312,2289.1,2288.2,10.90909459]
[1773674745692,0.21947029,2289.5,2287.2,5.00113474]
[1773674745693,4.14553312,2288.9,2287.8,10.91309459]
[1773674745895,4.14553312,2288.5,2287.3,3.80209459]
[1773674746098,4.14553312,2288.5,2287.4,3.80209459]
[1773674746397,4.14553312,2288.4,2287.4,3.80209459]
[1773674746896,4.14553312,2288.5,2287.6,3.80209459]
[1773674748298,4.14553312,2288.5,2287.8,3.80209459]
[1773674748496,4.14553312,2289.0,2287.8,3.80209459]
[1773674748999,4.14553312,2289.0,2288.0,3.80209459]
[1773674749189,4.14553312,2289.4,2288.2,3.80209459]
[1773674749393,4.14553312,2289.3,2288.4,3.80209459]
[1773674750298,4.36391312,2289.3,2288.2,3.80209459]
[1773674754000,4.14553312,2289.3,2288.2,3.80209459]
[1773674754403,3.85970691,2289.5,2288.4,3.94179465]
[1773674755802,3.85970691,2289.5,2288.5,3.94179465]
[1773674760202,3.85970691,2289.5,2288.6,3.94179465]
[1773674762718,0.00480633,2289.5,2288.6,3.94179465]
[1773674762911,0.00480633,2289.5,2288.8,3.94179465]
[1773674763210,3.85490058,2289.8,2289.0,3.94179465]
[1773674763412,3.85490058,2290.1,2289.0,3.94179465]
[1773674764216,3.85953937,2290.1,2289.0,3.94179465]
[1773674764513,0.00463879,2290.1,2289.2,3.94179465]
[1773674764718,0.00463879,2290.1,2289.2,3.94667741]
[1773674765020,3.85953937,2290.1,2289.2,3.94667741]
[1773674765814,3.85953937,2290.1,2289.3,3.94179465]
[1773674766616,0.00463879,2290.1,2289.3,3.94179465]
[1773674767216,3.85953937,2290.1,2289.3,3.94179465]
[1773674767416,4.07783937,2290.1,2289.2,3.94667741]
[1773674768422,3.85953937,2290.1,2289.2,3.94667741]
[1773674769822,3.85953937,2290.1,2288.7,3.94179465]
[1773674769823,3.85490058,2289.9,2288.7,3.94179465]
[1773674770723,3.85490058,2289.9,2288.7,3.94560486]
[1773674770918,3.85490058,2289.7,2288.7,3.94560486]
[1773674771417,3.85490058,2290.0,2288.7,4.16402486]
[1773674772126,3.85490058,2290.0,2288.7,3.94560486]
[1773674773720,3.85490058,2289.8,2288.7,3.94560486]
[1773674773925,3.85490058,2289.8,2288.7,0.00381021]
[1773674774226,3.85490058,2289.6,2288.7,3.94560486]
[1773674775728,3.96469058,2289.6,2288.7,3.94560486]
[1773674775923,3.96553058,2289.0,2288.3,3.94179465]
[1773674776724,3.85490058,2289.0,2288.3,3.94179465]
[1773674776923,3.96426058,2289.0,2288.3,3.94735047]
[1773674777124,3.96446058,2289.0,2288.3,3.94735047]
[1773674777431,3.85490058,2289.0,2288.3,3.94735047]
[1773674777725,3.96442058,2289.0,2288.3,3.94735047]
[1773674777926,3.96421058,2289.0,2288.3,3.94735047]
[1773674778427,3.85490058,2289.0,2288.3,3.94735047]
[1773674778627,3.96421058,2289.0,2288.3,3.94735047]
[1773674779528,3.96436058,2289.0,2288.3,3.94735047]
[1773674779732,3.96450058,2289.0,2288.3,3.94735047]
[1773674779926,3.85490058,2289.2,2288.3,3.94735047]
[1773674781524,3.96459058,2289.2,2288.3,3.94735047]
[1773674781724,3.85490058,2289.2,2288.3,3.94735047]
[1773674782028,3.96485058,2289.2,2288.3,3.94735047]
[1773674782230,3.85490058,2289.2,2288.3,3.94735047]
[1773674782727,3.96437058,2289.2,2288.3,3.94735047]
[1773674782925,3.85490058,2289.2,2288.3,3.94735047]
[1773674783527,44.65305586,2289.4,2288.3,3.94735047]
[1773674784234,3.85305586,2289.3,2288.3,3.94735047]
[1773674784928,3.85305586,2289.6,2288.5,3.7770493]
[1773674785134,3.85305586,2289.8,2288.5,3.7770493]
[1773674785729,44.65305586,2289.8,2288.5,3.7770493]
[1773674786131,44.65305586,2289.8,2288.6,0.21844]
[1773674786331,3.85305586,2289.8,2288.7,3.7770493]
[1773674794041,40.8,2289.9,2288.9,3.7770493]
[1773674794340,3.85305586,2289.9,2288.9,3.7770493]
[1773674797639,3.85305586,2289.7,2288.9,3.7770493]
[1773674802042,3.85305586,2290.0,2289.0,0.2184]
[1773674802246,0.00463879,2290.1,2289.1,3.7770493]
[1773674802442,3.85305586,2290.6,2289.5,3.7770493]
[1773674803442,3.85821714,2290.6,2289.5,3.7770493]
[1773674804645,3.85821714,2290.6,2289.6,3.7770493]
[1773674810448,3.85305586,2290.4,2289.6,3.7770493]
[1773674811951,3.96239586,2290.4,2289.6,3.7770493]
[1773674813647,3.85305586,2290.4,2289.0,4.08104867]
[1773674814147,3.96536586,2290.4,2289.0,4.08104867]
[1773674815347,0.21827,2290.3,2289.1,3.91425859]
[1773674815651,3.87990068,2290.2,2289.1,3.91425859]
[1773674815847,4.10331196,2290.6,2289.1,3.91425859]
[1773674816048,4.10331196,2290.6,2289.3,3.91425859]
[1773674816352,3.87990068,2290.4,2289.3,3.91425859]
[1773674817151,3.99042068,2290.4,2289.3,3.91425859]
[1773674817649,3.99217068,2290.2,2289.3,3.91425859]
[1773674820355,3.99046068,2290.2,2289.3,3.91425859]
[1773674821351,3.99007068,2290.2,2289.3,3.91425859]
[1773674821551,3.87990068,2290.2,2289.3,3.91425859]
[1773674822155,3.87990068,2290.4,2289.3,4.13261859]
[1773674825456,40.8,2290.5,2289.3,4.13261859]
[1773674825755,3.87990068,2291.4,2290.4,3.91425859]
[1773674826154,3.87990068,2291.2,2290.4,3.91425859]
[1773674826860,3.88298543,2291.2,2290.4,3.91845127]
[1773674830554,0.00308475,2291.2,2290.4,3.91845127]
[1773674831861,3.88298543,2291.2,2290.4,3.91845127]
[1773674841268,3.88298543,2291.2,2290.4,0.00419268]
[1773674841965,3.88298543,2291.2,2290.4,3.91845127]
[1773674843364,3.99212543,2291.2,2290.4,3.91845127]
[1773674845274,3.88298543,2291.2,2290.4,3.91845127]
[1773674845466,3.99214543,2291.2,2290.4,3.91845127]
[1773674845967,3.99266543,2291.2,2290.4,3.91845127]
[1773674846172,3.88298543,2291.2,2290.4,3.91845127]
[1773674849374,0.00308475,2291.2,2290.4,3.91845127]
[1773674849569,4.00391238,2291.2,2290.4,3.91845127]
[1773674851472,0.00308475,2291.2,2290.4,3.91845127]
[1773674853375,4.00391238,2291.2,2290.4,3.91845127]
[1773674853767,0.00308475,2291.2,2290.6,4.04860162]
[1773674853974,44.80082763,2291.6,2290.6,4.04860162]
[1773674854572,4.00082763,2291.5,2290.6,4.04860162]
[1773674854973,4.00508152,2291.5,2290.6,4.04860162]
[1773674855579,4.00508152,2291.5,2290.7,4.04860162]
[1773674855973,0.00425389,2291.5,2290.7,4.04860162]
[1773674856179,0.00425389,2291.5,2290.9,4.04860162]
[1773674856580,4.00082763,2291.8,2290.9,4.04860162]
[1773674856879,4.00082763,2291.8,2291.0,4.04860162]
[1773674857280,44.80082763,2291.9,2291.0,4.04860162]
[1773674857476,44.80542224,2291.9,2291.0,4.04860162]
[1773674857675,4.00082763,2291.8,2291.0,4.04860162]
[1773674858074,5.18564323,2291.8,2291.0,4.04860162]
[1773674858279,4.00082763,2291.7,2291.0,4.04860162]
[1773674860477,4.00082763,2291.5,2290.5,4.04860162]
[1773674865582,4.00082763,2291.8,2290.5,4.04860162]
[1773674866683,4.00082763,2291.8,2290.7,4.04860162]
[1773674866873,4.00082763,2291.8,2290.9,4.04860162]
[1773674869285,4.11003763,2291.8,2290.9,4.04860162]
[1773674869681,4.11037763,2291.8,2290.9,4.04860162]
[1773674871181,4.11009763,2291.8,2290.9,4.04860162]
[1773674873885,4.0035128,2291.7,2290.9,4.04860162]
[1773674874085,4.2216528,2291.7,2290.6,4.05231861]
[1773674874690,4.0035128,2291.7,2290.6,4.05231861]
[1773674876888,4.00876299,2291.5,2290.4,3.80701817]
[1773674877088,4.00974299,2291.3,2290.4,3.80701817]
[1773674877582,5.46435975,2292.0,2290.6,3.80282549]
[1773674877788,3.89243299,2292.1,2290.8,3.80282549]
[1773674877988,3.89243299,2292.1,2291.0,3.80282549]
[1773674878687,3.89608424,2292.1,2291.0,3.80282549]
[1773674879189,0.00365125,2292.1,2291.0,3.80282549]
[1773674879589,3.89608424,2292.1,2291.0,3.80282549]
[1773674886188,3.89243299,2291.9,2291.0,3.80282549]
[1773674886782,4.00381299,2291.9,2291.0,3.80282549]
[1773674887085,4.00443299,2291.7,2290.5,3.80282549]
[1773674887288,4.00513299,2291.5,2290.5,3.80282549]
[1773674887690,3.89243299,2291.5,2290.5,3.80282549]
[1773674888087,4.00178299,2291.5,2290.5,3.80282549]
[1773674888490,4.00178299,2291.5,2290.4,0.00110793]
[1773674889188,4.00178299,2291.5,2290.3,3.80282549]
[1773674889189,3.89243299,2290.7,2289.7,3.80282549]
[1773674889697,4.00980299,2290.7,2289.7,3.80282549]
[1773674889989,4.00980299,2290.7,2289.1,3.80282549]
[1773674890191,3.89243299,2290.3,2289.1,3.80618642]
[1773674890391,4.01198603,2290.3,2289.1,3.80618642]
[1773674890593,3.89243299,2290.1,2289.1,0.00336093]
[1773674890791,4.00249299,2290.1,2289.1,3.80618642]
[1773674891296,4.00230299,2290.1,2289.1,3.80618642]
[1773674891501,3.89243299,2290.1,2289.1,3.80618642]
[1773674891698,4.00346299,2289.9,2289.1,3.80618642]
[1773674891889,4.00254299,2289.9,2289.1,3.80618642]
[1773674892093,3.89243299,2289.9,2289.1,3.80618642]
[1773674892395,4.01237299,2289.9,2289.1,3.80618642]
[1773674892596,40.8,2290.0,2289.1,3.80618642]
[1773674892997,44.80375299,2290.0,2289.1,3.80618642]
[1773674893198,4.00670299,2289.9,2289.1,3.80618642]
[1773674894300,4.00254299,2289.9,2289.1,0.00336093]
[1773674894705,4.11074299,2289.9,2287.9,3.80282549]
[1773674894896,4.11074299,2289.9,2288.1,3.80282549]
[1773674895298,40.8,2290.0,2288.1,3.80282549]
[1773674895299,3.89243299,2289.6,2288.1,3.80282549]
[1773674895597,4.00333299,2289.4,2288.1,3.80817885]
[1773674895803,3.89243299,2289.4,2288.1,3.80817885]
[1773674896002,15.70343299,2289.6,2288.5,3.80282549]
[1773674896303,3.89243299,2289.6,2288.5,3.80282549]
[1773674898501,41.02369863,2290.0,2288.7,3.80282549]
[1773674898502,3.89243299,2289.8,2288.7,3.80282549]
[1773674898697,56.51243299,2290.0,2288.7,3.80282549]
[1773674899097,3.89243299,2289.9,2288.7,3.80282549]
[1773674900399,52.627,2290.0,2288.8,0.21842]
[1773674900599,11.827,2290.0,2288.9,3.80282549]
[1773674900801,3.89243299,2290.1,2288.9,3.80282549]
[1773674901000,44.69243299,2290.0,2288.9,3.80282549]
[1773674901904,3.89243299,2289.9,2288.9,3.80282549]
[1773674902306,3.70593238,2290.1,2289.1,3.82325512]
[1773674902701,44.50593238,2290.0,2289.1,3.82325512]
[1773674903197,0.00412304,2290.3,2289.3,3.82325512]
[1773674903405,3.70593238,2290.6,2289.5,3.82325512]
[1773674903799,3.70593238,2290.5,2289.5,3.82325512]
[1773674904804,3.71070885,2290.5,2289.5,3.82325512]
[1773674908308,3.70593238,2291.7,2290.7,3.82325512]
[1773674908606,3.70593238,2291.5,2290.7,3.82325512]
[1773674909109,3.71073537,2291.5,2290.7,3.8284393]
[1773674911511,0.00480299,2291.5,2290.7,3.8284393]
[1773674912312,3.71073537,2291.5,2290.7,3.8284393]
[1773674912807,3.71073537,2291.5,2290.5,3.82325512]
[1773674913006,3.71073537,2291.5,2290.1,3.82325512]
[1773674913810,3.71073537,2291.5,2290.1,3.82693189]
[1773674914110,3.70593238,2291.3,2290.1,0.00367677]
[1773674915211,3.70593238,2291.1,2290.1,0.00367677]
[1773674915413,3.70593238,2290.9,2290.1,0.00367677]
[1773674916018,3.70593238,2290.7,2290.1,0.00367677]
[1773674916518,15.61493238,2290.9,2290.1,3.82693189]
[1773674916811,3.70593238,2290.9,2290.1,3.82693189]
[1773674917014,11.914,2291.1,2290.1,3.82693189]
[1773674917210,15.61993238,2291.1,2290.1,3.82693189]
[1773674917518,15.62293238,2291.3,2290.1,3.82693189]
[1773674917714,3.70593238,2291.2,2290.1,3.82693189]
[1773674920515,3.70593238,2291.2,2290.2,0.21828]
[1773674920716,3.70593238,2291.2,2290.3,3.82325512]
[1773674922327,3.71073537,2291.5,2290.5,3.82325512]
[1773674922524,0.00480299,2291.5,2290.7,3.82325512]
[1773674923324,0.00480299,2291.5,2290.9,3.82325512]
[1773674923627,3.70593238,2291.8,2291.1,3.82325512]
[1773674924322,3.70593238,2291.8,2290.6,3.82325512]
[1773674924521,3.70991124,2291.8,2290.6,3.82325512]
[1773674927932,3.70593238,2291.6,2290.6,3.82325512]
[1773674928632,3.70593238,2291.4,2290.2,3.82325512]
[1773674929127,3.92411238,2291.3,2290.2,3.82325512]
[1773674929329,3.70593238,2290.9,2290.1,0.00367677]
[1773674929737,3.70593238,2290.7,2289.1,3.82325512]
[1773674929930,3.70593238,2290.5,2289.1,3.82325512]
[1773674930136,3.70593238,2290.3,2289.3,3.82325512]
[1773674930337,3.70593238,2290.2,2289.3,3.82325512]
[1773674930635,3.70593238,2291.4,2290.1,3.82325512]
[1773674930832,3.92411238,2291.4,2290.1,3.82325512]
[1773674931139,3.70593238,2291.4,2290.1,3.82325512]
[1773674931435,40.8,2291.5,2290.1,3.82325512]
[1773674931436,15.71293238,2291.3,2290.1,3.82325512]
[1773674931734,3.70593238,2291.2,2290.1,3.82325512]
[1773674933438,3.80570129,2291.3,2290.3,3.99631514]
[1773674937436,3.80570129,2291.3,2289.8,3.93764864]
[1773674938139,3.78348975,2291.1,2289.8,3.93764864]
[1773674940141,3.78348975,2290.9,2289.8,3.93764864]
[1773674940337,15.86548975,2290.8,2289.8,3.93764864]
[1773674940541,15.86648975,2290.8,2289.8,4.15511312]
[1773674940842,15.86848975,2290.8,2289.8,4.15511312]
[1773674941440,12.089,2291.0,2290.0,3.93764864]
[1773674941639,3.78348975,2290.9,2290.0,3.93764864]
[1773674942240,3.78348975,2290.9,2289.5,3.93764864]
[1773674942644,3.78348975,2290.9,2289.5,4.15077429]
[1773674943940,9.71109331,2290.8,2289.5,3.93764864]
[1773674944142,3.78348975,2290.7,2289.5,3.93764864]
[1773674945940,3.78348975,2290.5,2289.3,3.94298147]
[1773674946244,3.78348975,2290.3,2289.3,3.94298147]
[1773674946440,3.78348975,2290.1,2289.3,3.94298147]
[1773674946646,3.78817644,2290.1,2289.3,3.94298147]
[1773674946845,15.90017644,2290.1,2289.3,3.94298147]
[1773674947041,3.78348975,2290.0,2289.3,3.94298147]
[1773674949136,15.90548975,2290.0,2289.3,3.94298147]
[1773674950338,3.78348975,2289.9,2289.3,3.94298147]
[1773674950541,15.91348975,2289.9,2289.3,3.94298147]
[1773674951244,12.134,2289.9,2289.3,3.94298147]
[1773674951442,15.91748975,2289.9,2289.3,3.94298147]
[1773674951843,3.78348975,2289.8,2289.3,3.94298147]
[1773674952246,12.134,2289.9,2289.3,3.94298147]
[1773674952443,12.134,2289.9,2289.0,0.2172785]
[1773674952444,3.78348975,2289.8,2289.0,3.93764864]
[1773674953542,12.15,2289.7,2289.0,3.94071465]
[1773674953847,15.93348975,2289.7,2289.0,3.94071465]
[1773674955145,3.78348975,2289.6,2289.0,0.00306601]
[1773674955443,3.78348975,2289.6,2288.8,3.93764864]
[1773674955644,3.78348975,2289.6,2288.5,3.93764864]
[1773674956149,3.78348975,2289.6,2288.0,3.93764864]
[1773674956449,3.78348975,2289.6,2288.0,3.9417823]
[1773674957045,12.176,2289.5,2288.0,3.9417823]
[1773674957247,3.78348975,2289.4,2288.0,3.9417823]
[1773674960345,15.97848975,2289.4,2288.2,3.93764864]
[1773674960543,3.78348975,2289.4,2288.4,3.93764864]
[1773674960752,12.196,2289.5,2288.4,3.93764864]
[1773674960951,15.98048975,2289.5,2288.4,3.93764864]
[1773674961449,15.98048975,2289.5,2288.6,3.93764864]
[1773674961648,3.78348975,2289.5,2288.6,3.93764864]
[1773674966951,3.78393813,2289.4,2288.1,3.77941186]
[1773674967554,3.78393813,2289.2,2288.1,3.77941186]
[1773674968754,3.78393813,2289.2,2288.3,3.77941186]
[1773674970351,4.869793,2290.0,2288.5,3.77941186]
[1773674970550,3.78393813,2289.4,2288.5,3.77941186]
[1773674970854,3.78393813,2289.6,2288.5,3.77941186]
[1773674971857,3.78393813,2289.6,2288.4,0.21846]
[1773674972058,4.00228813,2289.6,2288.2,3.77941186]